fUSD/lending_fUSD_20241105
["ID","MTS","AMOUNT","RATE_DAILY","PERIOD"]
[341340921,1730818268289,-500.0,0.00028219,2]
[341340923,1730818268299,-500.0,0.00028219,2]
[341340925,1730818268311,-652.16,0.00028219,2]
[341340927,1730818268322,-500.0,0.00028219,2]
[341340929,1730818268331,-441.86173435,0.00028219,2]
[341340931,1730818268340,-500.0,0.00028219,2]
[341340933,1730818268349,-500.0,0.00028219,2]
[341340935,1730818268358,-500.0,0.00028219,2]
[341340937,1730818268367,-500.0,0.00028219,2]
[341340939,1730818268376,-1213.8,0.00028219,2]
[341340941,1730818268385,-543.65,0.00028219,2]
[341340943,1730818268394,-500.0,0.00028219,2]
[341340945,1730818268404,-710.18,0.00028219,2]
[341340947,1730818268414,-596.5,0.00028219,2]
[341340949,1730818268423,-561.01888902,0.00028219,2]
[341340951,1730818268432,-500.0,0.00028219,2]
[341340953,1730818268442,-500.0,0.00028219,2]
[341340955,1730818268451,-500.0,0.00028219,2]
[341340957,1730818268460,-500.0,0.00028219,2]
[341340959,1730818268469,-500.0,0.00028219,2]
[341340961,1730818268478,-500.0,0.00028219,2]
[341340963,1730818268487,-500.0,0.00028219,2]
[341340965,1730818268496,-500.0,0.00028219,2]
[341340967,1730818268505,-500.0,0.00028219,2]
[341340968,1730818268514,-500.0,0.00028219,2]
[341340970,1730818268524,-500.0,0.00028219,2]
[341340972,1730818268533,-1031.26,0.00028219,2]
[341340974,1730818268542,-500.0,0.00028219,2]
[341340976,1730818268552,-500.0,0.00028219,2]
[341340978,1730818268562,-489.55068687,0.00028219,2]
[341340980,1730818268571,-500.0,0.00028219,2]
[341340982,1730818268580,-1810.02,0.00028219,2]
[341340983,1730818268589,-500.0,0.00028219,2]
[341340985,1730818268598,-539.73882738,0.00028219,2]
[341340987,1730818268607,-500.0,0.00028219,2]
[341340989,1730818268616,-1006.45,0.00028219,2]
[341340991,1730818268625,-1532.81,0.00028219,2]
[341340993,1730818268634,-500.0,0.00028219,2]
[341340995,1730818268643,-500.0,0.00028219,2]
[341340997,1730818268653,-1172.46,0.00028219,2]
[341340999,1730818268662,-500.0,0.00028219,2]
[341341001,1730818268672,-950.66,0.00028219,2]
[341341003,1730818268681,-500.0,0.00028219,2]
[341341005,1730818268691,-566.27,0.00028219,2]
[341341007,1730818268701,-500.0,0.00028219,2]
[341341009,1730818268711,-1150.28,0.00028219,2]
[341341011,1730818268721,-1053.05,0.00028219,2]
[341341013,1730818268731,-1385.21,0.00028219,2]
[341341015,1730818268740,-2449.39,0.00028219,2]
[341341017,1730818268749,-551.76,0.00028219,2]
[341341019,1730818268758,-500.0,0.00028219,2]
[341341021,1730818268767,-500.0,0.00028219,2]
[341341023,1730818268776,-1152.78,0.00028219,2]
[341341025,1730818268785,-336.71099839,0.00028219,2]
[341341027,1730818268794,-505.75,0.00028219,2]
[341341029,1730818268804,-367.58886895,0.00028219,2]
[341341031,1730818268817,-500.0,0.00028219,2]
[341341032,1730818268826,-500.0,0.00028219,2]
[341341034,1730818268835,-1169.16,0.00028219,2]
[341341036,1730818268844,-500.0,0.00028219,2]
[341341038,1730818268853,-500.0,0.00028219,2]
[341341040,1730818268862,-500.0,0.00028219,2]
[341341042,1730818268871,-1981.15,0.00028219,2]
[341341044,1730818268880,-1122.88,0.00028219,2]
[341341046,1730818268889,-667.7,0.00028219,2]
[341341048,1730818268898,-765.3,0.00028219,2]
[341341049,1730818268907,-500.0,0.00028219,2]
[341341050,1730818268916,-500.0,0.00028219,2]
[341341051,1730818268926,-1179.4,0.00028219,2]
[341341052,1730818268936,-745.83,0.00028219,2]
[341341053,1730818268944,-467.2024592,0.00028219,2]
[341341055,1730818268954,-496.34353363,0.00028219,2]
[341341057,1730818268963,-500.0,0.00028219,2]
[341341059,1730818268973,-500.0,0.00028219,2]
[341341061,1730818268984,-500.0,0.00028219,2]
[341341063,1730818268993,-1138.75,0.00028219,2]
[341341065,1730818269002,-500.0,0.00028219,2]
[341341067,1730818269011,-500.0,0.00028219,2]
[341341069,1730818269020,-402.55501805,0.00028219,2]
[341341071,1730818269030,-1799.17,0.00028219,2]
[341341073,1730818269041,-1546.36,0.00028219,2]
[341341075,1730818269050,-500.0,0.00028219,2]
[341341077,1730818269063,-500.0,0.00028219,2]
[341341079,1730818269072,-500.0,0.00028219,2]
[341341081,1730818269081,-918.0,0.00028219,2]
[341341083,1730818269090,-882.74,0.00028219,2]
[341341085,1730818269100,-500.0,0.00028219,2]
[341341087,1730818269109,-715.96,0.00028219,2]
[341341089,1730818269118,-500.0,0.00028219,2]
[341341091,1730818269129,-1464.77,0.00028219,2]
[341341093,1730818269139,-500.0,0.00028219,2]
[341341096,1730818269149,-500.0,0.00028219,2]
[341341098,1730818269159,-500.0,0.00028219,2]
[341341100,1730818269170,-500.0,0.00028219,2]
[341341102,1730818269179,-821.25,0.00028219,2]
[341341104,1730818269188,-561.05,0.00028219,2]
[341341105,1730818269197,-2488.35,0.00028219,2]
[341341107,1730818269206,-500.0,0.00028219,2]
[341341109,1730818269215,-305.34712946,0.00028219,2]
[341341111,1730818269225,-1277.43,0.00028219,2]
[341341113,1730818269234,-789.16,0.00028219,2]
[341341115,1730818269247,-1983.46,0.00028219,2]
[341341117,1730818269256,-500.0,0.00028219,2]
[341341119,1730818269265,-500.0,0.00028219,2]
[341341121,1730818269274,-1319.52,0.00028219,2]
[341341123,1730818269282,-770.21,0.00028219,2]
[341341125,1730818269293,-933.5,0.00028219,2]
[341341127,1730818269303,-1484.81,0.00028219,2]
[341341129,1730818269314,-2097.16,0.00028219,2]
[341341131,1730818269324,-769.6,0.00028219,2]
[341341133,1730818269334,-893.08,0.00028219,2]
[341341135,1730818269343,-500.0,0.00028219,2]
[341341137,1730818269352,-706.56,0.00028219,2]
[341341139,1730818269362,-626.22,0.00028219,2]
[341341141,1730818269371,-1129.24,0.00028219,2]
[341341143,1730818269381,-1181.37,0.00028219,2]
[341341145,1730818269390,-500.0,0.00028219,2]
[341341147,1730818269400,-500.0,0.00028219,2]
[341341149,1730818269410,-500.0,0.00028219,2]
[341341150,1730818269419,-160.80874569,0.00028219,2]
[341341153,1730818269429,-1105.93,0.00028219,2]
[341341154,1730818269438,-500.0,0.00028219,2]
[341341157,1730818269447,-500.0,0.00028219,2]
[341341158,1730818269457,-1772.13,0.00028219,2]
[341341161,1730818269467,-1949.19,0.00028219,2]
[341341163,1730818269476,-500.0,0.00028219,2]
[341341165,1730818269486,-500.0,0.00028219,2]
[341341167,1730818269495,-500.0,0.00028219,2]
[341341169,1730818269505,-2148.83,0.00028219,2]
[341341171,1730818269515,-500.0,0.00028219,2]
[341341173,1730818269525,-899.14,0.00028219,2]
[341341174,1730818269534,-500.0,0.00028219,2]
[341341176,1730818269544,-2651.17,0.00028219,2]
[341341178,1730818269553,-500.0,0.00028219,2]
[341341180,1730818269564,-729.55,0.00028219,2]
[341341182,1730818269573,-891.77,0.00028219,2]
[341341184,1730818269583,-500.0,0.00028219,2]
[341341186,1730818269592,-1337.92,0.00028219,2]
[341341188,1730818269601,-500.0,0.00028219,2]
[341341190,1730818269610,-500.0,0.00028219,2]
[341341192,1730818269620,-500.0,0.00028219,2]
[341341194,1730818269629,-500.0,0.00028219,2]
[341341196,1730818269638,-500.0,0.00028219,2]
[341341198,1730818269647,-2000.0,0.00028219,2]
[341341200,1730818269657,-500.0,0.00028219,2]
[341341202,1730818269666,-500.0,0.00028219,2]
[341341204,1730818269675,-500.0,0.00028219,2]
[341341206,1730818269684,-1628.51,0.00028219,2]
[341341208,1730818269693,-1340.76,0.00028219,2]
[341341210,1730818269702,-500.0,0.00028219,2]
[341341212,1730818269711,-1205.1,0.00028219,2]
[341341214,1730818269720,-500.0,0.00028219,2]
[341341216,1730818269730,-671.93,0.00028219,2]
[341341218,1730818269739,-2625.61,0.00028219,2]
[341341220,1730818269748,-500.0,0.00028219,2]
[341341222,1730818269757,-1052.87,0.00028219,2]
[341341224,1730818269767,-862.96,0.00028219,2]
[341341226,1730818269776,-500.0,0.00028219,2]
[341341228,1730818269786,-1134.95,0.00028219,2]
[341341230,1730818269795,-500.0,0.00028219,2]
[341341232,1730818269804,-500.0,0.00028219,2]
[341341233,1730818269814,-500.0,0.00028219,2]
[341341234,1730818269823,-713.84,0.00028219,2]
[341341235,1730818269832,-500.0,0.00028219,2]
[341341236,1730818269842,-1190.36,0.00028219,2]
[341341237,1730818269851,-561.87,0.00028219,2]
[341341239,1730818269861,-500.0,0.00028219,2]
[341341241,1730818269871,-500.0,0.00028219,2]
[341341243,1730818269881,-500.0,0.00028219,2]
[341341245,1730818269891,-500.0,0.00028219,2]
[341341247,1730818269900,-1258.85,0.00028219,2]
[341341249,1730818269910,-708.32,0.00028219,2]
[341341251,1730818269919,-719.74,0.00028219,2]
[341341253,1730818269930,-500.0,0.00028219,2]
[341341255,1730818269940,-500.0,0.00028219,2]
[341341257,1730818269950,-500.0,0.00028219,2]
[341341259,1730818269962,-530.24,0.00028219,2]
[341341261,1730818269972,-500.0,0.00028219,2]
[341341264,1730818269984,-1233.24,0.00028219,2]
[341341266,1730818269993,-533.96,0.00028219,2]
[341341268,1730818270003,-578.93158376,0.00028219,2]
[341341270,1730818270013,-500.0,0.00028219,2]
[341341272,1730818270025,-500.0,0.00028219,2]
[341341274,1730818270034,-1568.32,0.00028219,2]
[341341276,1730818270044,-1593.99,0.00028219,2]
[341341278,1730818270053,-500.0,0.00028219,2]
[341341280,1730818270063,-500.0,0.00028219,2]
[341341282,1730818270073,-1606.8,0.00028219,2]
[341341284,1730818270082,-500.0,0.00028219,2]
[341341286,1730818270091,-491.36164663,0.00028219,2]
[341341288,1730818270100,-1114.96,0.00028219,2]
[341341290,1730818270109,-500.0,0.00028219,2]
[341341292,1730818270119,-153.52879557,0.00028219,2]
[341341294,1730818270128,-1019.34,0.00028219,2]
[341341296,1730818270138,-1345.66,0.00028219,2]
[341341298,1730818270147,-513.09023817,0.00028219,2]
[341341300,1730818270156,-573.0,0.00028219,2]
[341341302,1730818270166,-500.0,0.00028219,2]
[341341304,1730818270175,-500.0,0.00028219,2]
[341341306,1730818270184,-500.0,0.00028219,2]
[341341308,1730818270194,-500.0,0.00028219,2]
[341341310,1730818270203,-500.0,0.00028219,2]
[341341312,1730818270212,-1308.07,0.00028219,2]
[341341314,1730818270223,-500.0,0.00028219,2]
[341341316,1730818270233,-500.0,0.00028219,2]
[341341318,1730818270244,-997.78,0.00028219,2]
[341341320,1730818270254,-500.0,0.00028219,2]
[341341322,1730818270263,-500.0,0.00028219,2]
[341341323,1730818270272,-510.23,0.00028219,2]
[341341325,1730818270282,-500.0,0.00028219,2]
[341341327,1730818270291,-619.16,0.00028219,2]
[341341329,1730818270301,-500.0,0.00028219,2]
[341341331,1730818270310,-654.14,0.00028219,2]
[341341333,1730818270323,-500.0,0.00028219,2]
[341341335,1730818270333,-500.0,0.00028219,2]
[341341337,1730818270342,-500.0,0.00028219,2]
[341341340,1730818270352,-500.0,0.00028219,2]
[341341342,1730818270361,-500.0,0.00028219,2]
[341341344,1730818270371,-500.0,0.00028219,2]
[341341346,1730818270381,-500.0,0.00028219,2]
[341341348,1730818270391,-500.0,0.00028219,2]
[341341350,1730818270400,-500.0,0.00028219,2]
[341341352,1730818270410,-685.48,0.00028219,2]
[341341354,1730818270420,-630.11090027,0.00028219,2]
[341341356,1730818270430,-859.18,0.00028219,2]
[341341358,1730818270439,-500.0,0.00028219,2]
[341341360,1730818270449,-500.0,0.00028219,2]
[341341362,1730818270458,-804.47,0.00028219,2]
[341341364,1730818270467,-500.0,0.00028219,2]
[341341366,1730818270477,-500.0,0.00028219,2]
[341341368,1730818270486,-500.0,0.00028219,2]
[341341370,1730818270495,-500.0,0.00028219,2]
[341341372,1730818270505,-1490.72,0.00028219,2]
[341341374,1730818270514,-500.0,0.00028219,2]
[341341376,1730818270523,-2778.32,0.00028219,2]
[341341378,1730818270533,-500.0,0.00028219,2]
[341341380,1730818270543,-500.0,0.00028219,2]
[341341382,1730818270552,-500.0,0.00028219,2]
[341341384,1730818270561,-500.0,0.00028219,2]
[341341385,1730818270572,-500.0,0.00028219,2]
[341341386,1730818270581,-500.0,0.00028219,2]
[341341387,1730818270591,-1058.06,0.00028219,2]
[341341388,1730818270600,-500.0,0.00028219,2]
[341341389,1730818270609,-991.64,0.00028219,2]
[341341390,1730818270619,-241.79663288,0.00028219,2]
[341341391,1730818270629,-500.0,0.00028219,2]
[341341392,1730818270638,-512.56,0.00028219,2]
[341341393,1730818270648,-1286.83,0.00028219,2]
[341341394,1730818270657,-500.0,0.00028219,2]
[341341395,1730818270667,-10560.64,0.00028219,2]
[341341396,1730818270677,-500.0,0.00028219,2]
[341341397,1730818270688,-500.0,0.00028219,2]
[341341398,1730818270697,-500.0,0.00028219,2]
[341341399,1730818270707,-574.51,0.00028219,2]
[341341400,1730818270717,-882.25,0.00028219,2]
[341341401,1730818270727,-500.0,0.00028219,2]
[341341402,1730818270736,-250.42,0.00028219,2]
[341341403,1730818270748,-2024.06,0.00028219,2]
[341341404,1730818270759,-2459.63,0.00028219,2]
[341341405,1730818270768,-500.0,0.00028219,2]
[341341406,1730818270778,-832.24,0.00028219,2]
[341341407,1730818270788,-522.65,0.00028219,2]
[341341408,1730818270798,-539.9,0.00028219,2]
[341341409,1730818270807,-528.68,0.00028219,2]
[341341410,1730818270820,-577.06,0.00028219,2]
[341341411,1730818270832,-324.43088005,0.00028219,2]
[341341412,1730818270841,-500.0,0.00028219,2]
[341341413,1730818270851,-519.71122753,0.00028219,2]
[341341414,1730818270861,-500.0,0.00028219,2]
[341341415,1730818270871,-250.0,0.00028219,2]
[341341416,1730818270881,-1759.85,0.00028219,2]
[341341417,1730818270890,-1143.05,0.00028219,2]
[341341418,1730818270900,-500.0,0.00028219,2]
[341341419,1730818270910,-2134.71,0.00028219,2]
[341341420,1730818270920,-500.0,0.00028219,2]
[341341421,1730818270931,-1180.55,0.00028219,2]
[341341422,1730818270942,-500.0,0.00028219,2]
[341341423,1730818270952,-669.82,0.00028219,2]
[341341424,1730818270962,-454.67596652,0.00028219,2]
[341341425,1730818270972,-500.0,0.00028219,2]
[341341426,1730818270982,-500.0,0.00028219,2]
[341341427,1730818270991,-500.0,0.00028219,2]
[341341428,1730818271002,-500.0,0.00028219,2]
[341341429,1730818271012,-2610.73,0.00028219,2]
[341341430,1730818271022,-500.0,0.00028219,2]
[341341431,1730818271032,-500.0,0.00028219,2]
[341341432,1730818271042,-812.75,0.00028219,2]
[341341433,1730818271052,-2008.76,0.00028219,2]
[341341434,1730818271064,-500.0,0.00028219,2]
[341341435,1730818271075,-500.0,0.00028219,2]
[341341436,1730818271085,-500.0,0.00028219,2]
[341341437,1730818271095,-500.0,0.00028219,2]
[341341438,1730818271104,-546.25967195,0.00028219,2]
[341341439,1730818271114,-566.13579312,0.00028219,2]
[341341440,1730818271124,-500.0,0.00028219,2]
[341341441,1730818271134,-500.0,0.00028219,2]
[341341442,1730818271145,-839.69,0.00028219,2]
[341341443,1730818271155,-500.0,0.00028219,2]
[341341444,1730818271166,-500.0,0.00028219,2]
[341341445,1730818271176,-2029.5,0.00028219,2]
[341341446,1730818271186,-500.0,0.00028219,2]
[341341447,1730818271196,-500.0,0.00028219,2]
[341341448,1730818271206,-500.0,0.00028219,2]
[341341449,1730818271216,-828.58,0.00028219,2]
[341341450,1730818271226,-500.0,0.00028219,2]
[341341451,1730818271237,-500.0,0.00028219,2]
[341341452,1730818271251,-500.0,0.00028219,2]
[341341453,1730818271260,-500.0,0.00028219,2]
[341341454,1730818271271,-500.0,0.00028219,2]
[341341455,1730818271280,-1273.27,0.00028219,2]
[341341456,1730818271291,-500.0,0.00028219,2]
[341341457,1730818271301,-500.0,0.00028219,2]
[341341458,1730818271311,-590.4,0.00028219,2]
[341341459,1730818271323,-12148.46,0.00028219,2]
[341341460,1730818271334,-1210.7,0.00028219,2]
[341341461,1730818271344,-2727.4,0.00028219,2]
[341341462,1730818271354,-500.0,0.00028219,2]
[341341463,1730818271365,-1114.81,0.00028219,2]
[341341464,1730818271375,-2229.83,0.00028219,2]
[341341465,1730818271385,-300.0,0.00028219,2]
[341341466,1730818271395,-500.0,0.00028219,2]
[341341467,1730818271404,-500.0,0.00028219,2]
[341341468,1730818271414,-511.42,0.00028219,2]
[341341469,1730818271424,-500.0,0.00028219,2]
[341341470,1730818271434,-2291.13,0.00028219,2]
[341341471,1730818271444,-997.05,0.00028219,2]
[341341472,1730818271454,-250.0,0.00028219,2]
[341341473,1730818271463,-800.14,0.00028219,2]
[341341474,1730818271473,-1162.23,0.00028219,2]
[341341475,1730818271483,-500.0,0.00028219,2]
[341341476,1730818271493,-618.36,0.00028219,2]
[341341477,1730818271503,-3281.13,0.00028219,2]
[341341478,1730818271712,-500.0,0.00028219,2]
[341341479,1730818271723,-500.0,0.00028219,2]
[341341480,1730818271732,-20453.09,0.00028219,2]
[341341481,1730818271741,-500.0,0.00028219,2]
[341341482,1730818271751,-500.0,0.00028219,2]
[341341483,1730818271761,-500.0,0.00028219,2]
[341341484,1730818271771,-839.45,0.00028219,2]
[341341485,1730818271782,-694.1,0.00028219,2]
[341341486,1730818271791,-500.0,0.00028219,2]
[341341487,1730818271801,-1597.24,0.00028219,2]
[341341488,1730818271811,-4040.37,0.00028219,2]
[341341489,1730818271822,-500.0,0.00028219,2]
[341341490,1730818271832,-500.0,0.00028219,2]
[341341491,1730818271842,-500.0,0.00028219,2]
[341341492,1730818271852,-500.0,0.00028219,2]
[341341493,1730818271861,-500.0,0.00028219,2]
[341341494,1730818271871,-8586.16,0.00028219,2]
[341341495,1730818271880,-500.0,0.00028219,2]
[341341496,1730818271890,-500.0,0.00028219,2]
[341341497,1730818271899,-500.0,0.00028219,2]
[341341498,1730818271908,-500.0,0.00028219,2]
[341341499,1730818271918,-500.0,0.00028219,2]
[341341500,1730818271928,-2313.73,0.00028219,2]
[341341501,1730818271938,-1073.79,0.00028219,2]
[341341502,1730818271947,-500.0,0.00028219,2]
[341341503,1730818271956,-558.66,0.00028219,2]
[341341504,1730818271967,-5774.21,0.00028219,2]
[341341505,1730818271976,-500.0,0.00028219,2]
[341341506,1730818271985,-500.0,0.00028219,2]
[341341507,1730818271995,-1029.49,0.00028219,2]
[341341508,1730818272005,-500.0,0.00028219,2]
[341341509,1730818272015,-673.5,0.00028219,2]
[341341510,1730818272024,-813.15,0.00028219,2]
[341341511,1730818272033,-500.0,0.00028219,2]
[341341512,1730818272043,-500.0,0.00028219,2]
[341341513,1730818272052,-500.0,0.00028219,2]
[341341514,1730818272062,-1674.98,0.00028219,2]
[341341515,1730818272076,-4168.65,0.00028219,2]
[341341516,1730818272086,-2221.75,0.00028219,2]
[341341517,1730818272096,-500.0,0.00028219,2]
[341341518,1730818272106,-500.0,0.00028219,2]
[341341519,1730818272115,-722.22,0.00028219,2]
[341341520,1730818272125,-500.0,0.00028219,2]
[341341521,1730818272135,-623.01,0.00028219,2]
[341341522,1730818272145,-500.0,0.00028219,2]
[341341523,1730818272155,-200.0,0.00028219,2]
[341341524,1730818272164,-728.55,0.00028219,2]
[341341525,1730818272174,-500.0,0.00028219,2]
[341341526,1730818272184,-800.76,0.00028219,2]
[341341527,1730818272194,-500.0,0.00028219,2]
[341341528,1730818272204,-500.0,0.00028219,2]
[341341529,1730818272214,-1037.42,0.00028219,2]
[341341530,1730818272223,-500.0,0.00028219,2]
[341341531,1730818272234,-500.0,0.00028219,2]
[341341532,1730818272248,-500.0,0.00028219,2]
[341341533,1730818272259,-198.65464108,0.00028219,2]
[341341534,1730818272268,-626.2966019,0.00028219,2]
[341341535,1730818272279,-4458.86,0.00028219,2]
[341341536,1730818272289,-6100.5,0.00028219,2]
[341341537,1730818272299,-1684.86,0.00028219,2]
[341341538,1730818272309,-500.0,0.00028219,2]
[341341539,1730818272323,-500.0,0.00028219,2]
[341341540,1730818272334,-500.0,0.00028219,2]
[341341541,1730818272345,-746.32,0.00028219,2]
[341341542,1730818272355,-500.0,0.00028219,2]
[341341543,1730818272364,-500.0,0.00028219,2]
[341341544,1730818272374,-860.55,0.00028219,2]
[341341545,1730818272383,-457.17018215,0.00028219,2]
[341341546,1730818272394,-2800.82,0.00028219,2]
[341341547,1730818272403,-1239.54,0.00028219,2]
[341341548,1730818272414,-500.0,0.00028219,2]
[341341549,1730818272424,-500.0,0.00028219,2]
[341341550,1730818272434,-500.0,0.00028219,2]
[341341551,1730818272443,-3438.17,0.00028219,2]
[341341552,1730818272453,-2595.38,0.00028219,2]
[341341553,1730818272463,-345.24975533,0.00028219,2]
[341341554,1730818272473,-500.0,0.00028219,2]
[341341555,1730818272483,-580.29,0.00028219,2]
[341341556,1730818272492,-3998.92,0.00028219,2]
[341341557,1730818272502,-14923.18,0.00028219,2]
[341341558,1730818272511,-2840.74,0.00028219,2]
[341341559,1730818272520,-847.64,0.00028219,2]
[341341560,1730818272529,-500.0,0.00028219,2]
[341341561,1730818272539,-200.39318854,0.00028219,2]
[341341562,1730818272548,-1420.05,0.00028219,2]
[341341563,1730818272558,-500.0,0.00028219,2]
[341341564,1730818272573,-500.0,0.00028219,2]
[341341565,1730818272582,-500.0,0.00028219,2]
[341341566,1730818272592,-7967.31,0.00028219,2]
[341341567,1730818272603,-500.0,0.00028219,2]
[341341568,1730818272612,-500.0,0.00028219,2]
[341341569,1730818272622,-500.0,0.00028219,2]
[341341570,1730818272632,-2786.33,0.00028219,2]
[341341571,1730818272641,-500.0,0.00028219,2]
[341341572,1730818272651,-500.0,0.00028219,2]
[341341573,1730818272661,-500.0,0.00028219,2]
[341341574,1730818272671,-500.0,0.00028219,2]
[341341575,1730818272680,-2634.78,0.00028219,2]
[341341576,1730818272690,-500.0,0.00028219,2]
[341341577,1730818272699,-500.0,0.00028219,2]
[341341578,1730818272708,-500.0,0.00028219,2]
[341341579,1730818272718,-500.0,0.00028219,2]
[341341580,1730818272727,-500.0,0.00028219,2]
[341341581,1730818272737,-522.03251073,0.00028219,2]
[341341582,1730818272746,-4963.13,0.00028219,2]
[341341583,1730818272755,-1373.68,0.00028219,2]
[341341584,1730818272765,-1485.58,0.00028219,2]
[341341585,1730818272775,-3175.23,0.00028219,2]
[341341586,1730818272784,-500.0,0.00028219,2]
[341341587,1730818272794,-8714.97,0.00028219,2]
[341341588,1730818272803,-500.0,0.00028219,2]
[341341589,1730818272819,-500.0,0.00028219,2]
[341341590,1730818272829,-500.0,0.00028219,2]
[341341591,1730818272839,-1668.5,0.00028219,2]
[341341592,1730818272849,-500.0,0.00028219,2]
[341341593,1730818272859,-580.17,0.00028219,2]
[341341594,1730818272868,-2394.75,0.00028219,2]
[341341595,1730818272878,-500.0,0.00028219,2]
[341341596,1730818272887,-500.0,0.00028219,2]
[341341597,1730818272897,-870.25,0.00028219,2]
[341341598,1730818272906,-3537.3,0.00028219,2]
[341341599,1730818272917,-500.0,0.00028219,2]
[341341600,1730818272926,-812.1,0.00028219,2]
[341341601,1730818272936,-500.0,0.00028219,2]
[341341602,1730818272946,-500.0,0.00028219,2]
[341341603,1730818272956,-500.0,0.00028219,2]
[341341604,1730818272966,-500.0,0.00028219,2]
[341341605,1730818272975,-5273.27,0.00028219,2]
[341341606,1730818272985,-519.6,0.00028219,2]
[341341607,1730818272995,-641.36,0.00028219,2]
[341341608,1730818273004,-1061.46,0.00028219,2]
[341341609,1730818273015,-500.0,0.00028219,2]
[341341610,1730818273024,-500.0,0.00028219,2]
[341341611,1730818273034,-500.0,0.00028219,2]
[341341612,1730818273043,-2904.78,0.00028219,2]
[341341613,1730818273052,-497.52833426,0.00028219,2]
[341341614,1730818273062,-22457.59,0.00028219,2]
[341341615,1730818273078,-500.0,0.00028219,2]
[341341616,1730818273087,-500.0,0.00028219,2]
[341341617,1730818273096,-543.17,0.00028219,2]
[341341618,1730818273105,-3230.76,0.00028219,2]
[341341619,1730818273116,-621.32,0.00028219,2]
[341341620,1730818273126,-851.69,0.00028219,2]
[341341621,1730818273136,-862.17,0.00028219,2]
[341341622,1730818273145,-500.0,0.00028219,2]
[341341623,1730818273155,-2720.75,0.00028219,2]
[341341624,1730818273165,-517.2,0.00028219,2]
[341341625,1730818273174,-500.0,0.00028219,2]
[341341626,1730818273184,-638.18,0.00028219,2]
[341341627,1730818273194,-500.0,0.00028219,2]
[341341628,1730818273204,-947.11,0.00028219,2]
[341341629,1730818273214,-3625.83,0.00028219,2]
[341341630,1730818273224,-2072.98,0.00028219,2]
[341341631,1730818273237,-500.0,0.00028219,2]
[341341632,1730818273247,-500.0,0.00028219,2]
[341341633,1730818273256,-2681.47,0.00028219,2]
[341341634,1730818273266,-500.0,0.00028219,2]
[341341635,1730818273276,-500.0,0.00028219,2]
[341341636,1730818273285,-500.0,0.00028219,2]
[341341637,1730818273295,-1864.35,0.00028219,2]
[341341638,1730818273305,-738.0,0.00028219,2]
[341341639,1730818273319,-879.91,0.00028219,2]
[341341640,1730818273329,-1021.21,0.00028219,2]
[341341641,1730818273339,-500.0,0.00028219,2]
[341341642,1730818273349,-500.0,0.00028219,2]
[341341643,1730818273359,-500.0,0.00028219,2]
[341341644,1730818273370,-940.79,0.00028219,2]
[341341645,1730818273381,-1411.05,0.00028219,2]